bitfinex-derivatives/quotes_BTCF0:USTF0_20230901
["timestamp","ask_amount","ask_price","bid_price","bid_amount"]
[1693575745443,0.56162841,25993.0,25992.0,1.12568404]
[1693575746842,0.50693934,25993.0,25992.0,1.12568404]
[1693575747343,0.56162841,25993.0,25992.0,1.12568404]
[1693575749243,0.43039096,25993.0,25992.0,1.12568404]
[1693575749637,0.43039096,25993.0,25992.0,1.19906149]
[1693575749843,0.43039096,25993.0,25992.0,1.16335242]
[1693575750042,0.48508003,25993.0,25992.0,1.12568404]
[1693575750438,0.54162841,25993.0,25992.0,1.12568404]
[1693575750633,0.56162841,25993.0,25992.0,1.12568404]
[1693575751840,0.54162841,25993.0,25992.0,1.12568404]
[1693575752048,0.56162841,25993.0,25992.0,1.12568404]
[1693575752249,0.54162841,25993.0,25992.0,1.12568404]
[1693575752442,0.56162841,25993.0,25992.0,1.12568404]
[1693575752638,0.54162841,25993.0,25992.0,1.12568404]
[1693575753039,0.56162841,25993.0,25992.0,1.12568404]
[1693575755950,0.54162841,25993.0,25992.0,1.12568404]
[1693575756152,0.56162841,25993.0,25992.0,1.12568404]
[1693575756857,0.54162841,25993.0,25992.0,1.12568404]
[1693575757057,0.56162841,25993.0,25992.0,1.12568404]
[1693575757746,0.54162841,25993.0,25992.0,1.12568404]
[1693575758752,0.56162841,25993.0,25992.0,1.12568404]
[1693575758946,0.54162841,25993.0,25992.0,1.12568404]
[1693575759157,0.56162841,25993.0,25992.0,1.12568404]
[1693575759556,0.54162841,25993.0,25992.0,1.12568404]
[1693575759750,0.56162841,25993.0,25992.0,1.12568404]
[1693575760152,0.54162841,25993.0,25992.0,1.12568404]
[1693575760659,0.54162841,25993.0,25992.0,1.10670404]
[1693575760855,0.48693934,25993.0,25992.0,1.10670404]
[1693575761556,0.54162841,25993.0,25992.0,1.10670404]
[1693575761757,0.54162841,25993.0,25992.0,0.025]
[1693575769960,0.54062841,25993.0,25992.0,0.03]
[1693575770164,0.53677841,25993.0,25992.0,0.03]
[1693575770666,0.53877841,25993.0,25992.0,0.02884999]
[1693575771160,0.53877841,25993.0,25992.0,0.026]
[1693575771361,0.54262841,25993.0,25992.0,0.026]
[1693575771565,0.73404417,25993.0,25992.0,0.026]
[1693575771757,0.73104417,25993.0,25992.0,0.002]
[1693575771955,0.73304417,25993.0,25992.0,0.002]
[1693575772363,0.00385,25989.0,25987.0,0.00284999]
[1693575772660,0.00385,25989.0,25987.0,0.02184999]
[1693575772661,0.52653745,25988.0,25987.0,0.02184999]
[1693575772864,0.67763745,25988.0,25987.0,0.02184999]
[1693575773059,0.68287841,25988.0,25987.0,0.00184999]
[1693575773254,0.62818934,25988.0,25987.0,0.02184999]
[1693575773455,0.57164096,25988.0,25987.0,0.02184999]
[1693575773666,0.57164096,25988.0,25987.0,0.02684999]
[1693575773968,0.57164096,25988.0,25987.0,0.14140838]
[1693575774971,0.62818934,25988.0,25987.0,0.10374]
[1693575775172,0.62818934,25988.0,25987.0,0.13174]
[1693575775365,0.68287841,25988.0,25987.0,0.13174]
[1693575775567,0.57164096,25988.0,25987.0,0.16440838]
[1693575775769,0.57164096,25988.0,25987.0,0.16940838]
[1693575775770,0.42454096,25988.0,25987.0,0.16940838]
[1693575775971,0.42454096,25988.0,25987.0,0.20511745]
[1693575776163,0.00924096,25988.0,25987.0,0.86105341]
[1693575776359,0.00924096,25988.0,25987.0,0.7841634]
[1693575776671,0.00924096,25988.0,25987.0,0.7561634]
[1693575778465,0.00924096,25988.0,25987.0,0.87135143]
[1693575780770,0.00924096,25988.0,25987.0,0.89935143]
[1693575780965,0.01324096,25988.0,25987.0,0.89935143]
[1693575783482,0.01324096,25988.0,25987.0,0.89635143]
[1693575783974,0.00924096,25988.0,25987.0,0.87135143]
[1693575784273,0.01324096,25988.0,25987.0,0.89635143]
[1693575787379,0.01324096,25988.0,25987.0,0.7811634]
[1693575787974,0.19147511,25994.0,25992.0,0.03235562]
[1693575788178,0.19147511,25994.0,25993.0,0.4153]
[1693575788695,0.60677511,25995.0,25993.0,0.48867745]
[1693575788884,0.00524233,25994.0,25992.0,0.00184999]
[1693575789074,0.03424233,25994.0,25993.0,0.4153]
[1693575789380,0.03424233,25994.0,25993.0,0.48867745]
[1693575789877,0.03224233,25994.0,25993.0,0.48967745]
[1693575790577,0.03224233,25994.0,25993.0,0.50967745]
[1693575790881,0.04124233,25994.0,25993.0,0.51267745]
[1693575791069,0.04124233,25994.0,25993.0,0.49267745]
[1693575791278,0.04124233,25994.0,25993.0,0.92797745]
[1693575791476,0.04124233,25994.0,25993.0,1.00489206]
[1693575791777,0.04124233,25994.0,25993.0,0.92797745]
[1693575791972,0.036,25994.0,25993.0,1.1685538]
[1693575792571,0.072,25994.0,25993.0,1.1685538]
[1693575792777,0.072,25994.0,25993.0,1.74869942]
[1693575792974,0.0709,25994.0,25993.0,1.74869942]
[1693575793175,0.0709,25994.0,25993.0,1.82556255]
[1693575793373,0.0389,25994.0,25993.0,1.83656255]
[1693575793573,0.008,25994.0,25993.0,1.89593999]
[1693575795175,0.19147511,25999.0,25994.0,0.3]
[1693575795370,0.19147511,25999.0,25998.0,0.41714999]
[1693575795579,0.19147511,26000.0,25999.0,0.00184999]
[1693575795782,0.19147511,26001.0,26000.0,0.00184999]
[1693575795981,0.00385,26004.0,26001.0,0.41714999]
[1693575795982,0.19147511,26002.0,26001.0,0.41714999]
[1693575796687,0.19147511,26002.0,26001.0,0.49052744]
[1693575797074,0.19147511,26003.0,26002.0,0.00184999]
[1693575797283,0.21147511,26003.0,26002.0,0.49052744]
[1693575797877,0.19147511,26003.0,26002.0,0.49052744]
[1693575798586,0.19532511,26004.0,26003.0,0.00184999]
[1693575798774,0.19532511,26004.0,26003.0,0.49052744]
[1693575799189,0.19147511,26004.0,26003.0,0.49052744]
[1693575799382,0.19147511,26005.0,26004.0,0.00184999]
[1693575799579,0.19147511,26005.0,26004.0,0.49052744]
[1693575799778,0.21147511,26005.0,26004.0,0.49052744]
[1693575800473,0.022,26005.0,26004.0,0.50352744]
[1693575801079,0.034,26005.0,26004.0,0.49252744]
[1693575801686,0.022,26005.0,26004.0,0.50352744]
[1693575801890,0.025,26005.0,26004.0,0.50452744]
[1693575802785,0.024,26005.0,26004.0,0.51552744]
[1693575803288,0.023,26005.0,26004.0,0.50252744]
[1693575803588,0.024,26005.0,26004.0,0.49152744]
[1693575803884,0.025,26005.0,26004.0,0.50452744]
[1693575804081,0.025,26005.0,26004.0,0.50267745]
[1693575804284,0.023,26005.0,26004.0,0.49152744]
[1693575804583,0.027,26005.0,26004.0,0.52752744]
[1693575804785,0.027,26005.0,26004.0,0.52567745]
[1693575804984,0.026,26005.0,26004.0,0.53852744]
[1693575805187,0.023,26005.0,26004.0,0.50067745]
[1693575805686,0.021,26005.0,26004.0,0.48867745]
[1693575805886,0.004,26005.0,26004.0,0.48967745]
[1693575806188,0.004,26005.0,26004.0,0.49152744]
[1693575806486,0.005,26005.0,26004.0,0.50367745]
[1693575806884,0.005,26005.0,26004.0,0.50552744]
[1693575807081,0.005,26005.0,26004.0,0.50367745]
[1693575807488,0.005,26005.0,26004.0,0.50552744]
[1693575807794,0.02785,26005.0,26004.0,0.4303]
[1693575807978,0.00985,26005.0,26004.0,0.4433]
[1693575808184,0.00985,26005.0,26004.0,0.48096838]
[1693575808379,0.02985,26005.0,26004.0,0.51667745]
[1693575808593,0.01185,26005.0,26004.0,0.53967745]
[1693575809193,0.01085,26005.0,26004.0,0.52567745]
[1693575809396,0.00785,26005.0,26004.0,0.48967745]
[1693575811496,0.153,26010.0,26009.0,0.00184999]
[1693575811692,0.153,26010.0,26009.0,0.49052744]
[1693575811896,0.00385,26014.0,26009.0,0.49052744]
[1693575812193,0.00385,26011.0,26009.0,0.00184999]
[1693575812390,0.00385,26011.0,26005.0,0.166]
[1693575812391,0.00385,26011.0,26010.0,0.4153]
[1693575812588,0.00973106,26011.0,26010.0,0.4153]
[1693575812791,0.02973106,26011.0,26010.0,0.4153]
[1693575813091,0.06627944,26011.0,26010.0,0.45100907]
[1693575813289,0.06627944,26011.0,26010.0,0.4153]
[1693575813290,0.01173106,26011.0,26010.0,0.4153]
[1693575813692,0.01173106,26011.0,26010.0,0.45100907]
[1693575813892,0.01173106,26011.0,26010.0,0.48698744]
[1693575814986,0.01173106,26011.0,26010.0,0.48798744]
[1693575815398,0.02473106,26011.0,26010.0,0.48998744]
[1693575815989,0.01173106,26011.0,26010.0,0.48798744]
[1693575816487,0.02473106,26011.0,26010.0,0.48998744]
[1693575816691,0.03873106,26011.0,26010.0,0.49098744]
[1693575817689,0.14996851,26011.0,26010.0,0.4193]
[1693575817889,0.09527944,26011.0,26010.0,0.4193]
[1693575818404,0.06827944,26011.0,26010.0,0.4163]
[1693575818708,0.01173106,26011.0,26010.0,0.45200907]
[1693575819092,0.03873106,26011.0,26010.0,0.49098744]
[1693575819593,0.02573106,26011.0,26010.0,0.48898744]
[1693575819900,0.01173106,26011.0,26010.0,0.48798744]
[1693575821296,0.01173106,26011.0,26010.0,0.45227837]
[1693575821495,0.02573106,26011.0,26010.0,0.45327837]
[1693575821796,0.02773106,26011.0,26010.0,0.50298744]
[1693575822101,0.02773106,26011.0,26010.0,0.46727837]
[1693575822398,0.01173106,26011.0,26010.0,0.48798744]
[1693575822598,0.01173106,26011.0,26010.0,0.45227837]
[1693575822798,0.01173106,26011.0,26010.0,0.4163]
[1693575823000,0.02088106,26011.0,26010.0,0.48998744]
[1693575823996,0.02088106,26011.0,26010.0,0.49182743]
[1693575824498,0.02188106,26011.0,26010.0,0.49082743]
[1693575825200,0.02188106,26011.0,26010.0,0.48898744]
[1693575825400,0.01888106,26011.0,26010.0,0.48882743]
[1693575825598,0.03488106,26011.0,26010.0,0.49098744]
[1693575826105,0.03488106,26011.0,26010.0,0.49282743]
[1693575826296,0.03488106,26011.0,26010.0,0.49098744]
[1693575826703,0.03488106,26011.0,26010.0,0.49282743]
[1693575826902,0.03488106,26011.0,26010.0,0.49098744]
[1693575827108,0.03488106,26011.0,26010.0,0.49282743]
[1693575827695,0.02588106,26011.0,26010.0,0.52498744]
[1693575827897,0.00988106,26011.0,26010.0,0.52298744]
[1693575828106,0.01388106,26011.0,26010.0,0.54198744]
[1693575828406,0.00988106,26011.0,26010.0,0.50598744]
[1693575828603,0.00057669,26013.0,26010.0,0.45813999]
[1693575828807,0.00057669,26013.0,26012.0,0.4153]
[1693575829107,28.24077669,26015.0,26013.0,0.07168744]
[1693575829306,28.24077669,26015.0,26014.0,0.4153]
[1693575829605,28.24077669,26015.0,26014.0,0.45100907]
[1693575830000,28.29732507,26015.0,26014.0,0.4153]
[1693575830606,28.35201414,26015.0,26014.0,0.4153]
[1693575831510,26.90601414,26015.0,26014.0,0.4383]
[1693575831904,26.90901414,26015.0,26014.0,0.4673]
[1693575832711,26.93285414,26015.0,26014.0,0.06]
[1693575833008,27.34815414,26015.0,26014.0,0.037]
[1693575833211,27.34715414,26015.0,26014.0,0.06]
[1693575833721,27.34715414,26015.0,26014.0,0.4753]
[1693575834009,27.34715414,26015.0,26014.0,0.06]
[1693575834712,27.34415414,26015.0,26014.0,0.037]
[1693575834918,27.34715414,26015.0,26014.0,0.057]
[1693575835211,27.34715414,26015.0,26014.0,0.049]
[1693575835813,0.00384,26014.0,26011.0,0.4153]
[1693575836001,0.41914,26012.0,26011.0,0.4153]
[1693575836309,0.43914,26012.0,26011.0,0.4153]
[1693575836515,0.55037745,26012.0,26011.0,0.4153]
[1693575836809,0.53037745,26012.0,26011.0,0.4153]
[1693575837016,0.11507745,26012.0,26011.0,0.4183]
[1693575837718,0.13507745,26012.0,26011.0,0.4183]
[1693575838606,0.14907745,26012.0,26011.0,0.4203]
[1693575838807,0.12907745,26012.0,26011.0,0.4203]
[1693575839010,0.13107745,26012.0,26011.0,0.4333]
[1693575839809,0.13907745,26012.0,26011.0,0.4183]
[1693575840713,0.57437745,26012.0,26011.0,0.003]
[1693575843519,0.55437745,26012.0,26011.0,0.003]
[1693575843720,0.57437745,26012.0,26011.0,0.003]
[1693575846211,0.55437745,26012.0,26011.0,0.003]
[1693575846418,0.57437745,26012.0,26011.0,0.003]
[1693575846920,0.57437745,26012.0,26011.0,0.4183]
[1693575848313,0.60492239,26012.0,26011.0,0.4183]
[1693575849520,0.58492239,26012.0,26011.0,0.4183]
[1693575852512,0.16962239,26012.0,26011.0,0.4183]
[1693575853020,0.07868907,26012.0,26011.0,0.4183]
[1693575853322,0.024,26012.0,26011.0,0.47400907]
[1693575853519,0.024,26012.0,26011.0,0.50998744]
[1693575855725,0.024,26012.0,26011.0,0.4383]
[1693575855923,0.024,26012.0,26011.0,0.47427837]
[1693575856513,0.024,26012.0,26011.0,0.50998744]
[1693575856722,0.024,26012.0,26011.0,0.47427837]
[1693575857314,0.024,26012.0,26011.0,0.50998744]
[1693575857512,0.024,26012.0,26011.0,0.47427837]
[1693575858625,0.024,26012.0,26011.0,0.50998744]
[1693575858923,0.024,26012.0,26011.0,0.47427837]
[1693575860021,0.19147511,26013.0,26011.0,1.05035824]
[1693575860324,26.79077669,26015.0,26012.0,0.45100907]
[1693575860631,26.79077669,26015.0,26014.0,0.4153]
[1693575861031,26.86603576,26015.0,26014.0,0.4153]
[1693575863228,26.87203576,26015.0,26014.0,0.4443]
[1693575863931,26.87203576,26015.0,26014.0,0.4753]
[1693575867020,26.86803576,26015.0,26014.0,0.4493]
[1693575867228,26.87003576,26015.0,26014.0,0.4493]
[1693575867634,27.03193576,26015.0,26014.0,0.4493]
[1693575873132,27.22692949,26015.0,26014.0,0.4493]
[1693575877534,27.03577576,26015.0,26014.0,0.4493]
[1693575878043,27.24689064,26015.0,26014.0,0.4493]
[1693575878339,27.05577576,26015.0,26014.0,0.4493]
[1693575878745,27.47107576,26015.0,26014.0,0.034]
[1693575880143,27.70046024,26015.0,26014.0,0.034]
[1693575881645,27.47107576,26015.0,26014.0,0.034]
[1693575881938,27.52675315,26015.0,26014.0,0.034]
[1693575882344,0.00384,26014.0,26009.0,0.4153]
[1693575882543,0.19493879,26010.0,26009.0,0.4153]
[1693575882843,0.00384,26009.0,26008.0,0.4468433]
[1693575883041,0.57674,26009.0,26008.0,0.4468433]
[1693575883543,0.65552746,26009.0,26008.0,0.4468433]
[1693575884245,0.65852746,26009.0,26008.0,0.4838433]
[1693575884839,0.66252746,26009.0,26008.0,0.5038433]
[1693575885235,0.66252746,26009.0,26008.0,0.0885433]
[1693575885440,0.66252746,26009.0,26008.0,0.05757669]
[1693575885639,0.84978625,26009.0,26008.0,0.05757669]
[1693575885840,0.84978625,26009.0,26008.0,1.16576895]
[1693575886247,0.84978625,26009.0,26008.0,0.05757669]
[1693575886440,1.08198746,26009.0,26008.0,0.00257669]
[1693575886644,1.09398746,26009.0,26008.0,0.00357669]
[1693575886942,1.09782746,26009.0,26008.0,0.00357669]
[1693575887144,1.12482746,26009.0,26008.0,0.00207669]
[1693575887352,1.35030601,26009.0,26008.0,0.00207669]
[1693575887643,1.36030601,26009.0,26008.0,0.006]
[1693575887839,1.10682746,26009.0,26008.0,0.004]
[1693575888045,1.14282746,26009.0,26008.0,0.006]
[1693575890049,1.10682746,26009.0,26008.0,0.002]
[1693575890240,1.14382746,26009.0,26008.0,0.005]
[1693575893152,2.34382746,26009.0,26008.0,0.005]
[1693575894348,0.31299,26008.0,26002.0,0.00183999]
[1693575894550,0.4153,26003.0,26002.0,0.00884999]
[1693575894743,0.47408746,26003.0,26002.0,0.00884999]
[1693575894951,0.47792746,26003.0,26002.0,0.00884999]
[1693575895555,0.47792746,26003.0,26002.0,0.00984999]
[1693575896361,0.00384,26002.0,26001.0,0.4153]
[1693575896560,0.06262746,26002.0,26001.0,0.4353]
[1693575896857,0.06262746,26002.0,26001.0,0.4153]
[1693575897060,0.47792746,26002.0,26001.0,0.01201]
[1693575897254,0.47792746,26002.0,26001.0,0.02]
[1693575897756,0.47992746,26002.0,26001.0,0.033]
[1693575898262,0.47992746,26002.0,26001.0,0.01402]
[1693575898458,0.47992746,26002.0,26001.0,0.013]
[1693575898665,0.47808746,26002.0,26001.0,0.026]
[1693575899263,0.51620747,26002.0,26001.0,0.026]
[1693575899456,0.55020747,26002.0,26001.0,0.015]
[1693575899970,0.57520747,26002.0,26001.0,0.005]
[1693575900357,0.57520747,26002.0,25999.0,0.00057689]
[1693575900358,0.00384,26000.0,25999.0,0.00057689]
[1693575900667,0.00384,26000.0,25994.0,0.4153]
[1693575900668,0.41914,26000.0,25994.0,0.4153]
[1693575900872,0.41914,26000.0,25991.0,0.49205484]
[1693575900873,0.00384,25994.0,25991.0,0.49205484]
[1693575901163,0.41914,25992.0,25989.0,0.49205484]
[1693575901356,0.00384,25992.0,25990.0,1.10869849]
[1693575901559,0.47408746,25991.0,25990.0,1.10869849]
[1693575901860,0.03821746,25991.0,25990.0,1.54399849]
[1693575902263,0.02057,25991.0,25990.0,1.54399849]
[1693575902462,0.05878746,25991.0,25990.0,1.54399849]
[1693575902755,0.05878746,25991.0,25990.0,1.52399849]
[1693575902957,0.02057,25991.0,25990.0,1.52399849]
[1693575903265,0.004,25991.0,25990.0,1.59754687]
[1693575903466,0.04621746,25991.0,25990.0,1.57599849]
[1693575903873,0.06278746,25991.0,25990.0,1.54099849]
[1693575904074,0.06278746,25991.0,25990.0,1.54899849]
[1693575904566,0.06178746,25991.0,25990.0,1.53699849]
[1693575904762,0.06178746,25991.0,25990.0,1.51800849]
[1693575904963,0.51520747,25991.0,25990.0,1.10270849]
[1693575905172,0.51520747,25991.0,25990.0,0.013]
[1693575905767,0.06178746,25991.0,25990.0,0.4283]
[1693575906169,0.06078746,25991.0,25990.0,0.4293]
[1693575906377,0.07578746,25991.0,25990.0,0.41032]
[1693575906569,0.07678746,25991.0,25990.0,0.41132]
[1693575906771,0.011,25990.0,25988.0,0.41587713]
[1693575906972,0.47408746,25989.0,25988.0,0.00057713]
[1693575907368,0.62798746,25989.0,25988.0,0.00057713]
[1693575908073,0.64698746,25989.0,25988.0,0.00357713]
[1693575909282,0.23168746,25989.0,25988.0,0.41887713]
[1693575909483,0.23168746,25989.0,25988.0,0.41097713]
[1693575909670,0.23168746,25989.0,25988.0,1.5197372]
[1693575910270,0.23168746,25989.0,25988.0,1.5217372]
[1693575910271,0.24668746,25989.0,25988.0,1.5217372]
[1693575910780,0.24668746,25989.0,25987.0,0.4153]
[1693575910781,0.01698,25988.0,25987.0,0.4153]
[1693575910985,0.47408746,25988.0,25987.0,0.39831999]
[1693575911277,0.47408746,25988.0,25987.0,1.50711431]
[1693575911684,0.51220747,25988.0,25987.0,1.50711431]
[1693575911875,0.47608746,25988.0,25987.0,1.50811431]
[1693575912676,0.47608746,25988.0,25987.0,1.10979432]
[1693575912879,0.51420747,25988.0,25987.0,1.10979432]
[1693575913083,0.01698,25987.0,25983.0,0.23551146]
[1693575913278,0.05878746,25986.0,25984.0,1.09187877]
[1693575913585,0.008,25988.0,25984.0,1.09187877]
[1693575913586,0.31904524,25985.0,25984.0,1.09187877]
[1693575913883,0.39538271,25985.0,25983.0,0.03025538]
[1693575914183,0.47408746,25984.0,25983.0,0.003]
[1693575914380,0.47408746,25984.0,25980.0,0.23051146]
[1693575914381,0.01599,25983.0,25981.0,0.1584]
[1693575914680,0.4153,25982.0,25981.0,0.53854]
[1693575914981,0.33829274,25982.0,25981.0,0.4153]
[1693575915290,0.3970802,25982.0,25981.0,0.4153]
[1693575915585,0.47408746,25982.0,25980.0,0.5693]
[1693575915886,0.47408746,25981.0,25980.0,0.4153]
[1693575916480,0.4153,25981.0,25980.0,0.47184838]
[1693575917081,0.004,25982.0,25980.0,0.54653745]
[1693575917389,0.004,25982.0,25981.0,0.47184838]
[1693575917587,0.004,25983.0,25981.0,0.57807565]
[1693575917787,0.5669,25987.0,25982.0,0.47184838]
[1693575917990,0.4153,25987.0,25986.0,0.4153]
[1693575918173,0.47408746,25987.0,25986.0,0.4153]
[1693575918373,0.51220747,25987.0,25986.0,0.4153]
[1693575918578,0.47408746,25987.0,25986.0,0.4153]
[1693575919389,0.51220747,25987.0,25986.0,0.4153]
[1693575919889,0.00385,25986.0,25982.0,0.4153]
[1693575920085,0.4153,25983.0,25982.0,0.4663]
[1693575920291,0.4153,25983.0,25982.0,0.57753745]
[1693575920495,0.4153,25983.0,25982.0,0.55753745]
[1693575920681,0.4153,25983.0,25982.0,0.52653745]
[1693575921381,0.4193,25983.0,25982.0,0.55753745]
[1693575921578,0.004,25983.0,25982.0,0.55753745]
[1693575922493,0.4233,25983.0,25982.0,0.4463]
[1693575922985,0.46151746,25983.0,25982.0,0.4463]
[1693575923294,0.48208746,25983.0,25982.0,0.4463]
[1693575923586,0.4233,25983.0,25982.0,0.50284838]
[1693575924186,0.4233,25983.0,25982.0,0.55753745]
[1693575924595,0.008,25983.0,25982.0,0.55753745]
[1693575928995,0.008,25983.0,25982.0,0.50284838]
[1693575929386,0.008,25983.0,25982.0,0.55753745]
[1693575929581,0.4233,25983.0,25982.0,0.031]
[1693575930191,0.46151746,25983.0,25982.0,0.031]
[1693575930396,0.48208746,25983.0,25982.0,0.031]
[1693575930783,0.48593746,25983.0,25982.0,0.031]
[1693575931186,0.52405747,25983.0,25982.0,0.031]
[1693575931392,0.54405747,25983.0,25982.0,0.031]
[1693575931793,0.00385,25982.0,25977.0,0.07651146]
[1693575932114,0.4153,25978.0,25977.0,0.07651146]
[1693575932398,0.4153,25978.0,25976.0,0.10674446]
[1693575932399,0.02286,25977.0,25976.0,0.10674446]
[1693575932598,0.41915,25977.0,25976.0,0.011223]
[1693575932800,0.47793746,25977.0,25976.0,0.07651146]
[1693575932989,0.4153,25977.0,25976.0,0.07651146]
[1693575933190,0.4153,25979.0,25976.0,0.49181146]
[1693575933488,0.51629972,25979.0,25978.0,0.4153]
[1693575933893,0.53686972,25979.0,25978.0,0.4153]
[1693575934292,0.51605747,25979.0,25978.0,0.4153]
[1693575934491,0.45727001,25979.0,25978.0,0.47184838]
[1693575935106,0.51605747,25979.0,25978.0,0.4153]
[1693575935816,0.54005747,25979.0,25978.0,0.028]
[1693575936095,0.46527001,25979.0,25978.0,0.028]
[1693575936800,0.52405747,25979.0,25978.0,0.028]
[1693575937898,0.54405747,25979.0,25978.0,0.028]
[1693575938596,0.54405747,25979.0,25978.0,0.00901]
[1693575940901,0.54405747,25979.0,25971.0,0.27986719]
[1693575940902,0.41915,25978.0,25971.0,0.07651146]
[1693575941109,0.41915,25970.0,25967.0,0.0765631]
[1693575941323,0.00385,25963.0,25961.0,0.11486057]
[1693575941514,0.00385,25960.0,25959.0,0.07657869]
[1693575941702,0.90385,25957.0,25956.0,0.07657869]
[1693575941906,0.00385,25953.0,25952.0,0.11477474]
[1693575942107,0.00385,25950.0,25948.0,0.13303972]
[1693575942417,1.20385,25943.0,25942.0,0.11482639]
[1693575942597,1.20385,25943.0,25939.0,0.19137732]
[1693575942598,0.30385,25942.0,25941.0,0.08188626]
[1693575942800,0.00385,25940.0,25937.0,0.00012]
[1693575943012,0.4153,25940.0,25939.0,0.39125]
[1693575943210,0.4153,25940.0,25937.0,0.00012]
[1693575943211,0.4153,25939.0,25937.0,0.00012]
[1693575943413,0.4153,25938.0,25937.0,0.00012]
[1693575943709,0.00385,25936.0,25931.0,0.3]
[1693575944004,1.504,25942.0,25931.0,0.3]
[1693575944005,0.4153,25933.0,25932.0,0.4153]
[1693575944211,0.4153,25933.0,25932.0,1.27812696]
[1693575944413,0.004,25942.0,25937.0,0.3]
[1693575944602,0.4153,25938.0,25932.0,0.57728594]
[1693575944805,0.008,25942.0,25938.0,0.57489851]
[1693575945009,0.008,25942.0,25941.0,0.4153]
[1693575945197,0.008,25942.0,25941.0,0.4353]
[1693575945398,0.2731,25944.0,25941.0,0.71215127]
[1693575945706,0.4153,25942.0,25934.0,0.0269]
[1693575945904,0.4153,25947.0,25941.0,0.4422]
[1693575945905,0.2731,25947.0,25941.0,0.4422]
[1693575946110,0.4153,25945.0,25944.0,0.4153]
[1693575946311,0.33367,25945.0,25942.0,0.57782534]
[1693575946505,0.4153,25944.0,25943.0,0.58]
[1693575946809,0.43987,25944.0,25943.0,0.58]
[1693575947008,0.02457,25944.0,25943.0,0.58]
[1693575947212,0.004,25944.0,25943.0,0.71123745]
[1693575947512,0.004,25944.0,25943.0,1.49310165]
[1693575947713,0.2731,25948.0,25945.0,0.617]
[1693575947915,0.2731,25951.0,25945.0,0.637]
[1693575948120,0.2731,25951.0,25950.0,0.617]
[1693575948298,0.29367,25951.0,25950.0,0.617]
[1693575948607,0.2731,25951.0,25950.0,0.617]
[1693575948816,0.2731,25951.0,25950.0,0.72823745]
[1693575949108,0.2731,25954.0,25950.0,1.28722664]
[1693575949315,0.069,25951.0,25950.0,0.5985752]
[1693575949514,0.08957,25951.0,25950.0,1.1955752]
[1693575949701,0.069,25951.0,25950.0,1.1955752]
[1693575949904,0.042,25951.0,25950.0,1.30781265]
[1693575950102,0.03657,25951.0,25950.0,0.67468907]
[1693575950309,0.03657,25951.0,25950.0,0.62]
[1693575950613,0.03657,25951.0,25950.0,0.67654838]
[1693575950614,0.016,25951.0,25950.0,0.67654838]
[1693575951008,0.016,25951.0,25950.0,0.73123745]
[1693575951516,0.2731,25954.0,25950.0,1.32940916]
[1693575951705,0.2731,25954.0,25953.0,1.234]
[1693575952111,0.2731,25954.0,25953.0,1.94494229]
[1693575952616,0.2771,25954.0,25953.0,1.94494229]
[1693575952818,0.004,25954.0,25953.0,1.94494229]
[1693575953112,0.2731,25962.0,25956.0,0.0269]
[1693575953315,0.2931,25962.0,25961.0,0.617]
[1693575953511,0.2931,25962.0,25961.0,0.72823745]
[1693575954107,0.31367,25962.0,25961.0,0.67168907]
[1693575954314,0.2731,25962.0,25961.0,0.67168907]
[1693575954516,0.2731,25962.0,25956.0,0.0269]
[1693575954819,0.2731,25962.0,25957.0,0.1546]
[1693575954820,0.2731,25958.0,25957.0,0.1546]
[1693575955015,0.96888746,25958.0,25957.0,0.1546]
[1693575955317,0.96888746,25958.0,25957.0,0.1346]
[1693575955506,0.27695,25958.0,25957.0,0.7516]
[1693575955713,0.2731,25958.0,25957.0,0.7516]
[1693575955913,0.2731,25958.0,25957.0,0.82628907]
[1693575956212,0.2781,25958.0,25957.0,0.91983745]
[1693575956419,0.2781,25958.0,25957.0,0.7886]
[1693575956608,0.3121,25958.0,25957.0,0.7626]
[1693575956804,1.03888746,25958.0,25957.0,0.1396]
[1693575957313,1.43978746,25958.0,25957.0,0.1396]
[1693575958016,0.42188746,25958.0,25957.0,0.1396]
[1693575958313,0.3171,25958.0,25957.0,0.1386]
[1693575958613,1.34585,25958.0,25957.0,0.1376]
[1693575958819,1.40463746,25958.0,25957.0,0.003]
[1693575959014,1.40463746,25958.0,25950.0,0.1607]
[1693575959015,0.2731,25951.0,25950.0,0.1607]
[1693575959218,0.29752,25951.0,25950.0,0.21538907]
[1693575959521,0.33573746,25951.0,25950.0,0.1607]
[1693575959813,0.35573746,25951.0,25950.0,0.1607]
[1693575960415,0.35573746,25951.0,25947.0,0.16]
[1693575960416,0.2731,25948.0,25947.0,0.16]
[1693575960611,1.36978746,25948.0,25947.0,0.14098]
[1693575961011,1.36978746,25948.0,25941.0,0.1663]
[1693575961012,0.2731,25942.0,25941.0,0.1663]
[1693575961209,0.2731,25939.0,25932.0,1.0179]
[1693575961414,0.2731,25939.0,25935.0,1.0179]
[1693575961617,0.2731,25939.0,25938.0,1.0179]
[1693575961920,0.2731,25939.0,25938.0,1.0379]
[1693575962220,0.2731,25939.0,25938.0,1.14913745]
[1693575962411,0.2761,25939.0,25938.0,1.14913745]
[1693575962913,0.2771,25939.0,25938.0,1.18013745]
[1693575963114,0.2771,25939.0,25938.0,1.7614679]
[1693575963115,0.006,25939.0,25938.0,1.7614679]
[1693575964325,0.002,25939.0,25938.0,1.7454679]
[1693575964612,1.0179,25947.0,25938.0,1.7454679]
[1693575964613,0.2731,25945.0,25939.0,0.11123745]
[1693575964814,1.0179,25941.0,25938.0,0.03]
[1693575965012,0.2931,25945.0,25938.0,0.03]
[1693575965013,1.0179,25944.0,25939.0,0.05468907]
[1693575965216,0.2731,25945.0,25941.0,1.0179]
[1693575965516,0.2731,25945.0,25943.0,1.0179]
[1693575965711,0.2731,25945.0,25943.0,1.0379]
[1693575965916,0.2751,25945.0,25944.0,0.57475473]
[1693575966122,0.33388746,25945.0,25944.0,0.02]
[1693575966423,0.33388746,25945.0,25941.0,0.1568]
[1693575966624,1.0179,25943.0,25941.0,0.13781]
[1693575967122,0.05878746,25942.0,25941.0,0.13781]
[1693575967329,0.02057,25942.0,25941.0,0.13781]
[1693575967617,0.3461,25945.0,25941.0,0.15781]
[1693575967925,0.3461,25945.0,25942.0,0.11123745]